bitfinex/quotes_SOLUSD_20241031
["timestamp","ask_amount","ask_price","bid_price","bid_amount"]
[1730403771471,85.84138422,168.88,168.82,64.39002893]
[1730403771668,85.84138422,168.88,168.83,20.0]
[1730403772698,91.76278422,168.88,168.84,5.9227]
[1730403773866,71.79945529,168.88,168.85,14.04192893]
[1730403774379,71.79945529,168.88,168.84,20.7296]
[1730403777392,85.84138422,168.88,168.84,20.7296]
[1730403780269,71.79945529,168.88,168.84,20.7296]
[1730403780473,71.79945529,168.88,168.84,34.77152893]
[1730403780992,71.79945529,168.88,168.84,20.7296]
[1730403781790,77.72085529,168.88,168.84,20.7296]
[1730403782000,91.76278422,168.88,168.84,20.7296]
[1730403782490,91.76278422,168.88,168.84,14.8069]
[1730403782711,91.76278422,168.88,168.81,15.9731]
[1730403782712,14.04192893,168.86,168.81,44.82412893]
[1730403782991,14.04192893,168.86,168.82,5.9234]
[1730403783182,71.79945529,168.85,168.82,5.9234]
[1730403784882,91.76388422,168.85,168.81,20.7329]
[1730403785186,91.76388422,168.85,168.79,14.04192893]
[1730403785392,91.76388422,168.85,168.79,19.96632893]
[1730403785780,14.04192893,168.84,168.79,5.9244]
[1730403786288,71.79945529,168.83,168.79,5.9244]
[1730403787004,71.79945529,168.83,168.79,34.77762893]
[1730403787188,71.79945529,168.83,168.8,14.04192893]
[1730403787717,71.79945529,168.83,168.79,34.77762893]
[1730403788700,71.79945529,168.83,168.8,14.04192893]
[1730403788897,71.79945529,168.83,168.82,14.04192893]
[1730403789277,71.79945529,168.83,168.81,14.04192893]
[1730403789485,71.79945529,168.83,168.8,34.04192893]
[1730403790603,71.79945529,168.83,168.8,28.99044181]
[1730403790782,71.79945529,168.83,168.82,8.99044181]
[1730403791103,71.79945529,168.83,168.82,29.11593181]
[1730403791308,71.79945529,168.83,168.82,29.24142181]
[1730403791520,71.79945529,168.83,168.82,50.74122181]
[1730403792686,71.79945529,168.83,168.82,56.66462181]
[1730403792906,71.79945529,168.83,168.82,80.66699581]
[1730403793201,15.5818,168.95,168.85,0.25098]
[1730403793399,15.5818,168.95,168.91,8.99044181]
[1730403793590,8.99044181,168.97,168.92,8.99044181]
[1730403793789,8.99044181,168.96,168.9,8.99044181]
[1730403793984,14.90864181,168.97,168.91,8.99044181]
[1730403794188,24.50164181,168.99,168.93,8.99044181]
[1730403794575,15.5112,168.99,168.94,14.02492337]
[1730403794778,14.02492337,169.0,168.95,34.74102337]
[1730403795074,5.9167,169.02,168.95,34.74102337]
[1730403795075,19.94162337,169.02,168.96,14.02492337]
[1730403795576,14.02492337,169.02,168.96,14.02492337]
[1730403795804,15.0952,169.03,168.98,14.02492337]
[1730403796104,15.0952,169.03,168.95,20.7161]
[1730403796105,14.02492337,169.0,168.95,20.7161]
[1730403796688,14.02492337,168.99,168.95,14.7972]
[1730403797908,15.0952,169.03,168.95,34.74102337]
[1730403797909,14.02492337,169.01,168.95,34.74102337]
[1730403798200,14.02492337,168.98,168.93,19.94442337]
[1730403799088,14.02492337,168.99,168.94,14.02492337]
[1730403799980,5.9172,169.0,168.95,14.02492337]
[1730403800204,5.9172,169.0,168.95,19.94362337]
[1730403800501,14.02492337,169.01,168.95,34.74082337]
[1730403800801,14.02492337,169.02,168.96,14.02492337]
[1730403801804,14.02492337,169.02,168.97,5.9182]
[1730403801989,19.94152337,169.02,168.97,5.9182]
[1730403803410,14.02492337,169.01,168.95,14.02492337]
[1730403803705,14.02492337,168.99,168.93,34.02492337]
[1730403804481,14.02492337,168.98,168.93,25.9192]
[1730403804712,14.02492337,168.98,168.93,40.7182]
[1730403804890,5.9164,169.02,168.93,54.74312337]
[1730403804891,14.02492337,168.99,168.93,54.74312337]
[1730403805090,14.02492337,168.99,168.94,14.02492337]
[1730403806001,14.02492337,168.99,168.95,5.9189]
[1730403806709,14.02492337,169.0,168.95,34.74102337]
[1730403806893,14.02492337,169.01,168.96,14.02492337]
[1730403807288,14.02492337,169.01,168.95,34.74102337]
[1730403807509,14.02492337,169.01,168.96,0.12549]
[1730403807695,15.0952,169.03,168.98,14.02492337]
[1730403808013,15.0952,169.03,168.99,5.9175]
[1730403808682,15.0952,169.03,168.99,34.73612337]
[1730403808886,19.94032337,169.05,168.99,34.73612337]
[1730403809084,15.6135,169.07,168.99,34.73612337]
[1730403809085,14.02492337,169.08,169.02,14.02492337]
[1730403809288,5.9136,169.1,169.01,14.02492337]
[1730403809289,14.02492337,169.06,169.01,14.02492337]
[1730403809595,14.02492337,169.05,169.0,14.02492337]
[1730403810109,14.02492337,169.05,169.0,19.94172337]
[1730403810410,19.94022337,169.06,169.0,34.73452337]
[1730403811714,5.9153,169.06,169.02,14.02492337]
[1730403812728,5.9147,169.07,169.02,14.02492337]
[1730403813008,14.02492337,169.05,169.01,5.9164]
[1730403813211,14.02492337,169.06,169.01,5.9164]
[1730403813409,14.02492337,169.06,169.0,28.81772337]
[1730403813618,14.02492337,169.05,169.0,28.81772337]
[1730403813800,14.02492337,169.05,169.0,34.73482337]
[1730403814705,14.02492337,169.06,169.0,34.73482337]
[1730403815111,14.02492337,169.07,169.01,14.02492337]
[1730403815308,19.93892337,169.09,169.03,14.02492337]
[1730403816435,14.02492337,169.08,169.02,14.02492337]
[1730403816611,14.02492337,169.07,169.02,14.02492337]
[1730403817151,14.02492337,169.07,169.02,19.94112337]
[1730403817808,14.02492337,169.07,169.01,14.02492337]
[1730403818020,14.02492337,169.06,169.01,5.9167]
[1730403819223,19.94012337,169.06,169.01,5.9167]
[1730403820036,5.9147,169.07,169.03,14.02492337]
[1730403820332,14.02492337,169.09,169.03,14.02492337]
[1730403821134,14.02492337,169.08,169.03,14.02492337]
[1730403821434,14.02492337,169.11,169.06,14.02492337]
[1730403821626,14.02492337,169.09,169.04,14.02492337]
[1730403821813,14.02492337,169.09,169.03,34.73112337]
[1730403822335,14.02492337,169.07,169.03,20.7062]
[1730403823519,19.93942337,169.08,169.03,20.7062]
[1730403825030,14.02492337,169.12,169.06,14.02492337]
[1730403825263,14.02492337,169.13,169.08,14.02492337]
[1730403825521,14.02492337,169.13,169.07,14.02492337]
[1730403825821,14.02492337,169.11,169.05,14.02492337]
[1730403826141,14.02492337,169.14,169.09,14.02492337]
[1730403826513,14.02492337,169.13,169.07,14.02492337]
[1730403826736,14.02492337,169.13,169.08,14.02492337]
[1730403826737,5.9129,169.12,169.08,14.02492337]
[1730403827916,5.9129,169.12,169.07,19.93952337]
[1730403828121,5.9119,169.15,169.11,14.02492337]
[1730403828940,19.93682337,169.15,169.09,14.02492337]
[1730403829137,14.02492337,169.18,169.12,14.02492337]
[1730403829919,14.02492337,169.17,169.11,14.02492337]
[1730403830344,14.02492337,169.2,169.14,14.02492337]
[1730403830530,19.93472337,169.21,169.15,14.02492337]
[1730403831824,14.02492337,169.2,169.14,19.93702337]
[1730403832852,5.9105,169.19,169.14,19.93702337]
[1730403833445,5.9105,169.19,169.16,14.02492337]
[1730403833821,14.02492337,169.21,169.16,14.02492337]
[1730403834153,5.9101,169.2,169.15,19.93652337]
[1730403834647,5.9101,169.2,169.16,14.02492337]
[1730403836133,14.02492337,169.22,169.16,14.02492337]
[1730403838043,5.9096,169.22,169.15,20.6913]
[1730403838249,14.02492337,169.25,169.19,14.02492337]
[1730403838544,19.93292337,169.26,169.21,14.02492337]
[1730403839127,5.908,169.26,169.22,14.02492337]
[1730403839325,5.908,169.26,169.21,14.02492337]
[1730403839734,5.908,169.26,169.21,19.93462337]
[1730403840436,19.93292337,169.26,169.21,19.93462337]
[1730403840645,19.93292337,169.26,169.21,14.02492337]
[1730403841655,19.93292337,169.26,169.2,19.93502337]
[1730403841826,19.93292337,169.26,169.2,34.71042337]
[1730403842222,5.908,169.26,169.22,14.02492337]
[1730403842424,14.02492337,169.25,169.2,34.71042337]
[1730403842628,14.02492337,169.24,169.18,19.93572337]
[1730403842834,14.02492337,169.24,169.19,14.02492337]
[1730403844154,30.2912,169.28,169.2,14.02492337]
[1730403844155,14.02492337,169.25,169.2,14.02492337]
[1730403844329,14.02492337,169.26,169.2,14.02492337]
[1730403845339,5.9084,169.25,169.2,19.93502337]
[1730403845742,5.9084,169.25,169.2,34.71042337]
[1730403845943,14.02492337,169.26,169.2,34.71042337]
[1730403846150,35.45472337,169.28,169.22,14.02492337]
[1730403846538,35.45472337,169.28,169.23,14.02492337]
[1730403846737,35.45472337,169.28,169.22,14.02492337]
[1730403847446,14.02492337,169.26,169.21,19.93462337]
[1730403847781,14.02492337,169.26,169.21,5.9097]
[1730403848253,14.02492337,169.26,169.21,34.70912337]
[1730403848949,14.02492337,169.26,169.21,20.6842]
[1730403849432,19.93322337,169.26,169.21,20.6842]
[1730403850153,15.5224,169.28,169.21,20.6842]
[1730403850154,14.02492337,169.27,169.22,14.02492337]
[1730403850360,35.45472337,169.28,169.22,14.02492337]
[1730403850536,8.94398127,169.3,169.24,8.94398127]
[1730403850735,8.94398127,169.31,169.25,8.94398127]
[1730403850945,5.9059,169.32,169.23,6.2464]
[1730403850946,14.84988127,169.32,169.26,8.94398127]
[1730403851437,5.9059,169.32,169.27,8.94398127]
[1730403851655,14.84988127,169.32,169.26,29.62198127]
[1730403852464,5.9059,169.32,169.27,14.85148127]
[1730403852771,14.84988127,169.32,169.27,14.85148127]
[1730403852973,19.8761555,169.32,169.27,19.8777555]
[1730403853172,20.4744737,169.33,169.27,34.6470555]
[1730403853350,20.4744737,169.33,169.28,13.9702555]
[1730403853769,20.4744737,169.33,169.27,13.9702555]
[1730403854068,13.9702555,169.3,169.25,13.9702555]
[1730403854277,13.9702555,169.29,169.24,33.9702555]
[1730403854575,13.9702555,169.31,169.25,13.9702555]
[1730403854961,5.9066,169.3,169.26,13.9702555]
[1730403855169,5.9066,169.3,169.25,19.8785555]
[1730403856154,5.9059,169.32,169.27,13.9702555]
[1730403857279,13.9702555,169.3,169.24,33.9702555]
[1730403857450,13.9702555,169.3,169.24,13.9702555]
[1730403858273,5.907,169.29,169.24,19.8789555]
[1730403858583,13.9702555,169.28,169.23,6.2464]
[1730403858744,13.9702555,169.27,169.23,6.2464]
[1730403859348,13.9702555,169.28,169.23,6.2464]
[1730403859746,5.9077,169.27,169.23,6.2464]
[1730403859949,13.9702555,169.26,169.2,28.7452555]
[1730403860158,13.9702555,169.26,169.2,34.6553555]
[1730403860349,5.9077,169.27,169.2,34.6553555]
[1730403860350,19.8779555,169.27,169.21,13.9702555]
[1730403861049,19.8779555,169.27,169.2,20.6851]
[1730403861050,19.8779555,169.27,169.22,13.9702555]
[1730403861253,19.8779555,169.27,169.21,13.9702555]
[1730403862477,5.9077,169.27,169.22,13.9702555]
[1730403862808,19.8779555,169.27,169.21,19.8799555]
[1730403863775,13.9702555,169.26,169.2,28.7452555]
[1730403863977,13.9702555,169.24,169.18,25.9490555]
[1730403864177,13.9702555,169.25,169.19,33.9702555]
[1730403865263,5.9087,169.24,169.19,39.8806555]
[1730403865955,5.9087,169.24,169.19,19.8806555]
[1730403866377,13.9702555,169.26,169.21,13.9702555]
[1730403866958,13.4702555,169.26,169.21,13.9702555]
[1730403867371,13.9702555,169.24,169.18,25.9491555]
[1730403867572,13.9702555,169.23,169.17,34.6592555]
[1730403867789,13.9702555,169.22,169.17,20.689]
[1730403867961,13.9702555,169.22,169.17,14.7779]
[1730403868379,13.9702555,169.21,169.17,14.7779]
[1730403868679,5.9101,169.21,169.17,20.6891]
[1730403870754,19.8797555,169.22,169.17,20.6891]
[1730403871384,19.8786555,169.25,169.19,13.9702555]
[1730403873065,13.9702555,169.24,169.19,13.9702555]
[1730403873587,5.9094,169.22,169.18,5.9105]
[1730403875070,13.9702555,169.22,169.18,5.9105]
[1730403875464,13.9702555,169.22,169.17,20.689]
[1730403875690,13.9702555,169.22,169.17,14.7779]
[1730403875870,13.9702555,169.21,169.17,14.7779]
[1730403876068,13.9702555,169.21,169.14,23.0545]
[1730403876069,13.9702555,169.19,169.14,35.2586555]
[1730403876392,13.9702555,169.21,169.15,14.0957455]
[1730403876892,13.9702555,169.24,169.18,13.9702555]
[1730403877063,16.167,169.27,169.2,13.9702555]
[1730403877064,19.8786555,169.25,169.2,13.9702555]
[1730403877482,36.0452555,169.27,169.21,13.9702555]
[1730403878787,36.0452555,169.27,169.21,19.8799555]
[1730403880670,27.19246112,169.31,169.21,19.8799555]
[1730403880671,13.9702555,169.29,169.23,13.9702555]
[1730403880866,5.9073,169.28,169.23,13.9702555]
[1730403881699,13.9702555,169.28,169.23,13.9702555]
[1730403881873,13.9702555,169.29,169.23,19.8790555]
[1730403882824,19.8775555,169.29,169.23,19.8790555]
[1730403884384,13.9702555,169.28,169.23,19.8790555]
[1730403885987,19.8776555,169.28,169.23,19.8790555]
[1730403886186,19.8776555,169.28,169.23,34.6517555]
[1730403886783,5.9074,169.28,169.23,34.6517555]
[1730403886986,19.8776555,169.28,169.23,28.7429555]
[1730403887502,19.8776555,169.28,169.23,14.7727]
[1730403887708,13.9702555,169.26,169.2,13.9702555]
[1730403888006,5.9087,169.24,169.2,13.9702555]
[1730403888191,5.9087,169.24,169.21,13.9702555]
[1730403888497,5.9087,169.24,169.21,8.94769065]
[1730403888702,5.9087,169.24,169.18,14.7771]
[1730403888703,5.9087,169.24,169.19,28.94769065]
[1730403890504,5.9087,169.24,169.19,34.85799065]
[1730403891009,19.89264743,169.24,169.19,39.89424743]
[1730403891915,19.89264743,169.24,169.19,54.67044743]
[1730403892892,13.98394743,169.23,169.17,26.43624743]
[1730403893417,13.98394743,169.23,169.18,13.98394743]
[1730403894310,13.98394743,169.23,169.19,5.9105]
[1730403898702,19.89304743,169.23,169.19,5.9105]
[1730403901349,13.98394743,169.2,169.14,13.98394743]
[1730403901635,13.98394743,169.2,169.15,13.98394743]
[1730403901804,13.98394743,169.21,169.15,13.98394743]
[1730403901999,13.98394743,169.21,169.16,13.98394743]
[1730403902195,13.98394743,169.22,169.17,13.98394743]
[1730403902411,16.1361,169.25,169.19,13.98394743]
[1730403902412,19.89264743,169.24,169.19,13.98394743]
[1730403903114,36.02854743,169.25,169.2,13.98394743]
[1730403903423,13.98394743,169.24,169.19,19.89444743]
[1730403903603,36.02854743,169.25,169.2,13.98394743]
[1730403903799,20.9792,169.29,169.2,13.98394743]
[1730403903800,35.49224743,169.29,169.24,13.98394743]
[1730403904017,13.98394743,169.31,169.26,13.98394743]
[1730403904221,16.1996182,169.33,169.2,0.47647]
[1730403904222,36.08926563,169.33,169.28,13.98394743]
[1730403904531,22.1053182,169.33,169.28,13.98394743]
[1730403904901,16.1996182,169.33,169.23,0.2]
[1730403905206,0.5983182,169.33,169.3,13.98394743]
[1730403905407,0.5983182,169.33,169.3,19.89054743]
[1730403906614,13.98394743,169.32,169.26,33.98394743]
[1730403906820,13.98394743,169.32,169.27,13.98394743]
[1730403907109,6.5042182,169.33,169.26,20.0]
[1730403907110,0.5983182,169.33,169.28,13.98394743]
[1730403907320,0.5983182,169.33,169.3,13.98394743]
[1730403907534,0.5983182,169.33,169.29,19.89084743]
[1730403908328,0.5983182,169.33,169.3,13.98394743]
[1730403910102,0.5983182,169.33,169.28,13.98394743]
[1730403910103,6.5040182,169.33,169.28,13.98394743]
[1730403911037,13.98394743,169.32,169.26,33.98394743]
[1730403911222,13.98394743,169.32,169.26,39.89194743]
[1730403911915,13.98394743,169.32,169.27,13.98394743]
[1730403912429,20.48796563,169.33,169.28,13.98394743]
[1730403913111,6.5040182,169.33,169.28,13.98394743]
[1730403913433,20.48796563,169.33,169.28,13.98394743]
[1730403918824,20.48796563,169.33,169.28,19.89094743]
[1730403921429,0.5983182,169.33,169.3,14.23492743]
[1730403921621,0.5983182,169.33,169.32,34.36041743]
[1730403923614,0.5983182,169.33,169.32,40.26631743]
[1730403927035,0.5983182,169.33,169.32,64.24320143]
[1730403930450,0.5983182,169.33,169.32,59.18869913]
[1730403931952,24.24494513,169.43,169.39,0.12549]
[1730403932257,14.83124513,169.44,169.39,9.05493513]
[1730403932445,13.95167709,169.43,169.38,0.12549]
[1730403932637,13.95167709,169.43,169.38,20.12549]
[1730403932955,13.95167709,169.43,169.39,5.9035]
[1730403933138,13.95167709,169.42,169.38,34.88509]
[1730403933341,13.95167709,169.42,169.38,40.78889]
[1730403934153,13.95167709,169.43,169.38,54.74056709]
[1730403939657,12.95167709,169.43,169.38,54.74056709]
[1730403943172,19.85347709,169.44,169.39,19.85497709]
[1730403943461,13.95167709,169.44,169.39,34.61377709]
[1730403943863,13.95167709,169.43,169.39,20.6621]
[1730403950852,19.85367709,169.44,169.39,34.61377709]
[1730403951255,13.95167709,169.43,169.39,20.6621]
[1730403952364,13.95167709,169.44,169.39,34.61377709]
[1730403952890,8.92830035,169.43,169.39,20.6621]
[1730403953578,8.92830035,169.45,169.4,8.92830035]
[1730403953949,8.92830035,169.44,169.39,29.59040035]
[1730403954150,5.901,169.46,169.39,29.59040035]
[1730403954151,8.92830035,169.45,169.4,9.05379035]
[1730403954665,14.82980035,169.45,169.4,14.95689035]
[1730403954965,8.92830035,169.44,169.4,6.02859]
[1730403955852,14.82930035,169.46,169.4,29.71479035]
[1730403956161,8.92830035,169.46,169.4,29.71479035]
[1730403957168,8.92830035,169.45,169.4,29.71479035]
[1730403957557,14.82930035,169.46,169.41,8.92830035]
[1730403957890,14.82930035,169.46,169.4,29.71479035]
[1730403958454,6.9952182,169.5,169.4,29.71479035]
[1730403958455,9.52661855,169.5,169.45,8.92830035]
[1730403958847,0.5983182,169.5,169.46,8.92830035]
[1730403959054,0.5983182,169.5,169.47,8.92830035]
[1730403960279,0.5983182,169.5,169.47,0.12549]
[1730403960462,9.52661855,169.5,169.47,0.12549]
[1730403960780,0.5983182,169.5,169.47,0.12549]
[1730403960976,0.5983182,169.5,169.46,14.82920035]
[1730403961150,0.5983182,169.5,169.45,14.7532]
[1730403961151,8.92830035,169.49,169.44,20.0]
[1730403961353,15.42641855,169.5,169.45,8.92830035]
[1730403961673,0.5983182,169.5,169.47,8.92830035]
[1730403962282,0.5983182,169.5,169.46,0.12549]
[1730403962481,8.92830035,169.49,169.45,0.25098]
[1730403962652,15.42641855,169.5,169.45,15.08058035]
[1730403962856,0.5983182,169.5,169.48,8.92830035]
[1730403963066,0.5983182,169.5,169.49,8.92830035]
[1730403963577,0.5983182,169.5,169.49,9.05379035]
[1730403963751,0.5983182,169.5,169.49,9.17928035]
[1730403964966,0.5983182,169.5,169.49,15.07928035]
[1730403967182,0.5983182,169.5,169.49,0.25098]
[1730403967579,0.5983182,169.5,169.47,14.7513]
[1730403967770,0.5983182,169.5,169.46,16.98841417]
[1730403967771,6.4981182,169.5,169.46,22.15941382]
[1730403967962,6.4981182,169.5,169.46,2.15941382]
[1730403968391,15.42641855,169.5,169.46,2.15941382]
[1730403969576,8.92830035,169.49,169.46,2.15941382]
[1730403970794,15.42641855,169.5,169.46,0.12549]
[1730403971092,8.92830035,169.49,169.44,20.0]
[1730403971386,8.92830035,169.49,169.43,23.68280035]
[1730403971592,8.42830035,169.49,169.44,0.12549]
[1730403971890,8.92830035,169.49,169.44,0.12549]
[1730403972480,8.92830035,169.48,169.43,0.12549]
[1730403972666,5.9003,169.49,169.42,20.0]
[1730403972667,8.92830035,169.46,169.42,20.0]
[1730403972863,21.7338,169.49,169.42,28.92830035]
[1730403973083,30.66210035,169.49,169.44,9.05379035]
[1730403973578,30.66210035,169.49,169.43,9.17928035]
[1730403974489,30.66210035,169.49,169.44,8.92830035]
[1730403974871,30.66210035,169.49,169.43,15.08118035]
[1730403975273,8.92830035,169.48,169.43,15.08118035]
[1730403975488,8.92830035,169.46,169.41,20.6595]
[1730403976083,8.92830035,169.44,169.4,2.16017866]
[1730403977259,5.9021,169.43,169.4,2.16017866]
[1730403978090,14.83040035,169.43,169.4,2.16017866]
[1730403978272,5.9021,169.43,169.4,2.16017866]
[1730403978663,14.83010035,169.44,169.4,2.16017866]
[1730403980288,8.92830035,169.43,169.4,2.16017866]
[1730403980498,5.9018,169.44,169.4,2.16017866]
[1730403980499,8.92830035,169.42,169.4,2.16017866]
[1730403980667,14.83010035,169.44,169.4,2.16017866]
[1730403981186,8.92830035,169.44,169.4,8.06327866]
[1730403981383,14.82990035,169.45,169.4,16.99157901]
[1730403981766,5.9016,169.45,169.4,31.74947901]
[1730403982083,14.82990035,169.45,169.4,31.74947901]
[1730403984394,8.92830035,169.45,169.41,0.12549]
[1730403984576,8.92830035,169.47,169.42,8.92830035]
[1730403984889,14.82870035,169.48,169.42,8.92830035]
[1730403985492,8.92830035,169.47,169.42,8.92830035]
[1730403986501,14.82920035,169.47,169.42,14.83060035]
[1730403986686,14.82920035,169.47,169.42,5.9023]
[1730403987072,8.92830035,169.46,169.42,5.9023]
[1730403987571,8.92830035,169.43,169.4,2.16017866]
[1730403987776,8.92830035,169.44,169.4,2.16017866]
[1730403988971,14.83020035,169.44,169.4,2.16017866]
[1730403989276,8.92830035,169.43,169.4,2.16017866]
[1730403989484,8.92830035,169.42,169.4,2.16017866]
[1730403989668,8.92830035,169.42,169.37,20.6646]
[1730403990420,8.92830035,169.41,169.37,20.6646]
[1730403990898,5.9027,169.42,169.36,0.12549]
[1730403990899,8.92830035,169.4,169.36,0.12549]
[1730403992080,8.92830035,169.4,169.36,6.02989]
[1730403992482,8.92830035,169.4,169.35,8.92830035]
[1730403992668,8.92830035,169.39,169.35,20.0]
[1730403992870,8.92830035,169.39,169.34,23.69120035]
[1730403993080,8.92830035,169.39,169.34,14.7629]
[1730403993492,8.92830035,169.39,169.34,29.59640035]
[1730403993693,8.92830035,169.39,169.34,23.69120035]
[1730403993694,14.83190035,169.39,169.34,23.69120035]
[1730403993891,14.83190035,169.39,169.34,14.7629]
[1730403994090,14.83190035,169.39,169.33,14.83380035]
[1730403994091,8.92830035,169.38,169.32,14.83420035]
[1730403994486,8.92830035,169.37,169.32,29.59910035]
[1730403995480,8.92830035,169.36,169.32,20.6708]
[1730403996185,15.7715,169.37,169.32,29.59910035]
[1730403996388,15.7715,169.37,169.33,8.92830035]
[1730403997406,5.9035,169.39,169.35,5.9049]
[1730403997699,5.9035,169.39,169.35,14.83320035]
[1730403998205,24.00550035,169.41,169.35,29.59550035]
[1730403998413,20.98,169.41,169.36,9.05379035]
[1730403998587,29.90830035,169.41,169.36,0.12549]
[1730403998788,8.92830035,169.4,169.36,0.12549]
[1730403999783,8.92830035,169.4,169.36,6.02979]
[1730404001179,8.92830035,169.42,169.37,8.92830035]
[1730404001378,14.83020035,169.44,169.39,8.92830035]
[1730404001576,5.9019,169.44,169.39,8.92830035]
[1730404001788,5.9019,169.44,169.39,29.59040035]
[1730404002395,24.55140035,169.45,169.39,29.59040035]
[1730404002707,30.45290035,169.45,169.39,29.59040035]
[1730404003911,8.92830035,169.44,169.39,29.59040035]
[1730404004100,14.83010035,169.44,169.39,29.59040035]
[1730404004502,8.92830035,169.43,169.39,20.6621]
[1730404004811,14.83010035,169.44,169.39,20.6621]
[1730404006718,5.9018,169.44,169.39,23.68710035]
[1730404007309,14.83010035,169.44,169.39,23.68710035]
[1730404007825,14.83010035,169.44,169.39,29.59060035]
[1730404008922,14.83010035,169.44,169.39,14.7588]
[1730404009111,8.92830035,169.43,169.39,14.7588]
[1730404010022,8.92830035,169.42,169.37,14.83240035]
[1730404010898,8.92830035,169.43,169.37,14.83240035]
[1730404011410,5.9024,169.42,169.37,14.83240035]
[1730404014319,5.9024,169.42,169.37,5.9041]
[1730404014320,8.92830035,169.42,169.37,5.9041]
[1730404015431,14.83090035,169.42,169.37,5.9041]
[1730404015728,8.92830035,169.39,169.35,5.9046]
[1730404016034,8.92830035,169.4,169.35,14.83290035]
[1730404016217,8.92830035,169.4,169.35,29.59520035]
[1730404016425,5.9026,169.42,169.35,29.59520035]
[1730404016426,8.92830035,169.41,169.35,29.59520035]
[1730404017632,5.9031,169.4,169.35,29.59520035]
[1730404018313,24.87110035,169.39,169.33,8.92830035]
[1730404018515,8.92830035,169.38,169.34,20.0]
[1730404019223,8.92830035,169.38,169.32,23.69280035]
[1730404019224,8.92830035,169.38,169.33,20.25098]
[1730404019425,8.92830035,169.38,169.33,0.12549]
[1730404019614,8.92830035,169.38,169.32,23.69280035]
[1730404019615,8.92830035,169.37,169.32,20.6703]
[1730404020627,14.83270035,169.37,169.32,20.6703]
[1730404021633,14.83270035,169.37,169.32,8.92830035]
[1730404022011,5.9044,169.37,169.32,8.92830035]
[1730404022430,14.83270035,169.37,169.32,8.92830035]
[1730404023014,14.83210035,169.38,169.33,5.9056]
[1730404023217,8.92830035,169.38,169.33,14.83390035]
[1730404023421,21.8464,169.39,169.34,8.92830035]
[1730404023615,5.9029,169.41,169.36,8.92830035]
[1730404023836,14.83120035,169.41,169.36,8.92830035]
[1730404024030,8.92830035,169.4,169.34,8.92830035]
[1730404024229,8.92830035,169.4,169.34,29.17928035]
[1730404024613,8.92830035,169.39,169.34,20.25098]
[1730404024931,8.92830035,169.39,169.34,0.12549]
[1730404025138,8.92830035,169.38,169.34,0.12549]
[1730404025513,8.92830035,169.39,169.34,0.12549]
[1730404025918,14.83190035,169.39,169.34,6.03069]
[1730404026539,5.9032,169.4,169.35,8.92830035]
[1730404027040,8.92830035,169.41,169.35,8.92830035]
[1730404027214,8.92830035,169.41,169.36,8.92830035]
[1730404027544,30.32570035,169.43,169.38,8.92830035]
[1730404027730,30.32570035,169.43,169.37,8.92830035]
[1730404027962,8.92830035,169.4,169.36,14.7614]
[1730404028127,8.92830035,169.39,169.36,14.7614]
[1730404028321,8.92830035,169.38,169.34,5.9052]
[1730404028637,8.92830035,169.39,169.34,5.9052]
[1730404029417,14.83190035,169.39,169.34,5.9052]
[1730404029621,5.9036,169.39,169.34,29.59660035]
[1730404030948,15.4952,169.43,169.37,8.92830035]
[1730404030949,8.92830035,169.42,169.37,8.92830035]
[1730404031120,15.4952,169.43,169.38,8.92830035]
[1730404031742,21.3976,169.43,169.38,8.92830035]
[1730404032636,21.3976,169.43,169.38,14.83180035]
[1730404033134,21.3976,169.43,169.38,29.59150035]
[1730404033648,15.4952,169.43,169.39,9.17928035]
[1730404033941,15.4952,169.43,169.39,0.12549]
[1730404034740,15.4952,169.43,169.39,6.02899]
[1730404035454,24.42350035,169.43,169.39,6.02899]
[1730404035743,8.92830035,169.42,169.37,5.9041]
[1730404036041,8.92830035,169.4,169.37,5.9041]
[1730404036644,8.92830035,169.4,169.35,14.7618]
[1730404036942,14.83170035,169.4,169.35,14.7618]
[1730404038142,14.83170035,169.4,169.35,20.6667]
[1730404038829,14.83170035,169.4,169.35,29.59500035]
[1730404038830,5.9034,169.4,169.35,29.59500035]
[1730404039140,8.92830035,169.42,169.37,8.92830035]
[1730404039340,30.32570035,169.43,169.37,8.92830035]
[1730404039550,21.3974,169.43,169.38,8.92830035]
[1730404039748,21.3974,169.43,169.39,8.92830035]
[1730404039929,5.9022,169.43,169.39,8.92830035]
[1730404040124,14.82960035,169.46,169.4,8.92830035]
[1730404040449,21.1973,169.47,169.43,8.92830035]
[1730404040621,15.2965,169.47,169.43,8.92830035]
[1730404040821,5.9005,169.48,169.43,8.92830035]
[1730404041040,5.9005,169.48,169.44,8.92830035]
[1730404041233,14.82880035,169.48,169.42,8.92830035]
[1730404041446,14.82880035,169.48,169.43,0.25098]
[1730404042147,8.92830035,169.47,169.44,5.9017]
[1730404042353,14.82880035,169.48,169.44,5.9017]